fUSD/lending_fUSD_20260405
["ID","MTS","AMOUNT","RATE_DAILY","PERIOD"]
[419852519,1775419844680,-150.0,0.00014892,2]
[419852520,1775419844690,-500.0,0.00014894,2]
[419852521,1775419844700,-150.0,0.00014896,2]
[419852522,1775419844711,-150.0,0.00014897,2]
[419852523,1775419844720,-150.0,0.000149,2]
[419852524,1775419844730,-150.0,0.00014901,2]
[419852525,1775419844739,-150.0,0.00014908,2]
[419852526,1775419844751,-150.0,0.00014909,2]
[419852527,1775419844760,-150.0,0.00014912,2]
[419852528,1775419844770,-150.0,0.00014913,2]
[419852529,1775419844780,-150.0,0.00014918,2]
[419852530,1775419844789,-150.0,0.00014923,2]
[419852531,1775419844798,-6875.511368,0.00014925,2]
[419852532,1775419844807,-9384.372276,0.00014925,7]
[419852533,1775419844816,-3809.002517,0.00014925,2]
[419852534,1775419844826,-3554.302024,0.00014925,7]
[419852535,1775419844835,-150.0,0.00014925,2]
[419852536,1775419844844,-150.0,0.00014927,2]
[419852537,1775419844854,-150.0,0.00014933,2]
[419852538,1775419844863,-150.0,0.00014933,2]
[419852539,1775419844873,-150.0,0.00014941,2]
[419852540,1775419844883,-150.0,0.00014943,2]
[419852541,1775419844891,-150.0,0.00014944,2]
[419852542,1775419844901,-150.0,0.00014946,2]
[419852543,1775419844911,-150.0,0.00014949,2]
[419852544,1775419844921,-500.0,0.0001495,2]
[419852545,1775419844930,-500.0,0.0001495,2]
[419852546,1775419844940,-500.0,0.0001495,2]
[419852547,1775419844949,-403.93256284,0.0001495,2]
[419852548,1775419844958,-500.0,0.0001495,2]
[419852549,1775419844967,-500.0,0.0001495,2]
[419852550,1775419844976,-160.34417201,0.0001495,2]
[419852551,1775419844985,-500.0,0.0001495,2]
[419852552,1775419844994,-500.0,0.0001495,2]
[419852553,1775419845003,-500.0,0.0001495,2]
[419852554,1775419845013,-150.0,0.00014952,2]
[419852555,1775419845022,-164.79711181,0.00014953,2]
[419852556,1775419845031,-500.13152132,0.00014953,2]
[419852557,1775419845040,-500.0,0.00014953,2]
[419852558,1775419845049,-500.0,0.00014953,2]
[419852559,1775419845059,-150.0,0.00014954,2]
[419852560,1775419845068,-150.0,0.00014963,2]
[419852561,1775419845077,-150.0,0.00014965,2]
[419852562,1775419845086,-186.98,0.0001497,2]
[419852563,1775419845095,-150.0,0.00014973,2]
[419852564,1775419845104,-150.0,0.00014974,2]
[419852565,1775419845113,-150.0,0.00014976,2]
[419852566,1775419845122,-587.0,0.00014981,2]
[419852567,1775419845131,-150.0,0.00014982,2]
[419852568,1775419845140,-150.0,0.00014984,2]
[419852569,1775419845149,-150.0,0.00014985,2]
[419852570,1775419845158,-150.0,0.00014986,2]
[419852571,1775419845167,-240.93,0.00014997,2]
[419852572,1775419845176,-150.0,0.00014997,2]
[419852573,1775419845185,-500.0,0.00015,2]
[419852574,1775419845194,-500.0,0.00015,2]
[419852575,1775419845203,-500.0,0.00015,2]
[419852576,1775419845213,-500.0,0.00015,2]
[419852577,1775419845222,-500.0,0.00015,2]
[419852578,1775419845231,-500.0,0.00015,2]
[419852579,1775419845240,-500.0,0.00015,2]
[419852580,1775419845249,-500.0,0.00015,2]
[419852581,1775419845258,-500.0,0.00015,2]
[419852582,1775419845267,-500.0,0.00015,2]
[419852583,1775419845277,-500.0,0.00015,2]
[419852584,1775419845286,-500.0,0.00015,2]
[419852585,1775419845295,-199.41,0.00015,2]
[419852586,1775419845304,-500.0,0.00015,2]
[419852587,1775419845313,-500.0,0.00015,2]
[419852588,1775419845323,-468.12,0.00015,2]
[419852589,1775419845332,-168.7127,0.00015,2]
[419852590,1775419845341,-2252.55,0.00015,2]
[419852591,1775419845350,-2659.34,0.00015,2]
[419852592,1775419845359,-150.0,0.00015,2]
[419852593,1775419845368,-2067.27601646,0.00015,2]
[419852594,1775419845377,-8047.93487487,0.00015,2]
[419852595,1775419845386,-150.0,0.00015002,2]
[419852596,1775419845395,-150.0,0.00015004,2]
[419852597,1775419845405,-150.0,0.00015007,2]
[419852598,1775419845414,-150.0,0.00015008,2]
[419852599,1775419845424,-150.0,0.00015008,2]
[419852600,1775419845433,-150.0,0.00015015,2]
[419852601,1775419845442,-150.0,0.00015021,2]
[419852602,1775419845451,-150.0,0.00015021,2]
[419852603,1775419845462,-150.0,0.00015031,2]
[419852604,1775419845471,-150.0,0.00015034,2]
[419852605,1775419845480,-150.0,0.0001504,2]
[419852606,1775419845490,-150.0,0.0001504,2]
[419852607,1775419845499,-500.0,0.00015042,2]
[419852608,1775419845509,-519.03182682,0.00015042,2]
[419852609,1775419845518,-500.0,0.00015042,2]
[419852610,1775419845527,-168.69935806,0.00015042,2]
[419852611,1775419845537,-500.0,0.00015042,2]
[419852612,1775419845546,-500.0,0.00015042,2]
[419852613,1775419845555,-607.20051974,0.00015042,2]
[419852614,1775419845564,-162.72924009,0.00015042,2]
[419852615,1775419845574,-500.0,0.00015042,2]
[419852616,1775419845583,-210.98153295,0.00015042,2]
[419852617,1775419845592,-500.0,0.00015042,2]
[419852618,1775419845601,-500.0,0.00015042,2]
[419852619,1775419845611,-515.7358709,0.00015042,2]
[419852620,1775419845620,-500.0,0.00015042,2]
[419852621,1775419845629,-150.0,0.00015045,2]
[419852622,1775419845638,-150.0,0.00015046,2]
[419852623,1775419845647,-150.0,0.00015054,2]
[419852624,1775419845656,-150.0,0.00015055,2]
[419852625,1775419845667,-2351.0,0.00015055,2]
[419852626,1775419845677,-150.0,0.00015059,2]
[419852627,1775419845688,-150.0,0.00015062,2]
[419852628,1775419845698,-150.0,0.00015064,2]
[419852629,1775419845707,-800.0,0.00015068,2]
[419852630,1775419845716,-150.0,0.00015069,2]
[419852631,1775419845726,-150.0,0.00015072,2]
[419852632,1775419845735,-150.0,0.00015076,2]
[419852633,1775419845745,-150.0,0.00015077,2]
[419852634,1775419845755,-150.0,0.00015078,2]
[419852635,1775419845764,-507.0,0.00015078,3]
[419852636,1775419845773,-151.0,0.00015081,2]
[419852637,1775419845783,-156.587,0.00015081,2]
[419852638,1775419845792,-195.25511793,0.00015081,2]
[419852639,1775419845802,-500.0,0.00015087,2]
[419852640,1775419845813,-1063.21,0.00015087,2]
[419852641,1775419845822,-592.36573731,0.00015087,2]
[419852642,1775419846134,-620.62,0.00015087,2]
[419852643,1775419846144,-826.88,0.00015087,2]
[419852644,1775419846153,-150.0,0.00015093,2]
[419852645,1775419846162,-150.0,0.00015094,2]
[419852646,1775419846171,-150.0,0.00015096,2]
[419852647,1775419846181,-150.0,0.00015099,2]
[419852648,1775419846190,-150.0,0.000151,2]
[419852649,1775419846199,-150.0,0.00015104,2]
[419852650,1775419846208,-150.0,0.00015108,2]
[419852651,1775419846218,-150.0,0.00015115,2]
[419852652,1775419846227,-150.0,0.00015116,2]
[419852653,1775419846236,-150.0,0.00015117,2]
[419852654,1775419846246,-150.0,0.00015121,2]
[419852655,1775419846255,-150.0,0.00015125,2]
[419852656,1775419846265,-150.0,0.00015127,2]
[419852657,1775419846274,-150.0,0.00015134,2]
[419852658,1775419846284,-150.0,0.00015136,2]
[419852659,1775419846293,-150.0,0.00015138,2]
[419852660,1775419846303,-150.0,0.0001514,2]
[419852661,1775419846312,-150.0,0.00015144,2]
[419852662,1775419846322,-150.0,0.00015153,2]
[419852663,1775419846331,-150.0,0.00015155,2]
[419852664,1775419846340,-150.0,0.00015164,2]
[419852665,1775419846350,-26594.05472143,0.00015166,2]
[419852666,1775419846359,-150.0,0.00015166,2]
[419852667,1775419846368,-227.47775909,0.00015168,2]
[419852668,1775419846377,-150.0,0.00015168,2]
[419852669,1775419846386,-150.0,0.00015169,2]
[419852670,1775419846398,-150.0,0.00015172,2]
[419852671,1775419846408,-150.0,0.00015172,2]
[419852672,1775419846418,-500.0,0.00015175,2]
[419852673,1775419846430,-500.0,0.00015175,2]
[419852674,1775419846440,-500.0,0.00015175,2]
[419852675,1775419846451,-500.0,0.00015178,2]
[419852676,1775419846460,-500.0,0.00015178,2]
[419852677,1775419846470,-500.0,0.00015178,2]
[419852678,1775419846480,-500.0,0.00015178,2]
[419852679,1775419846490,-500.0,0.00015178,2]
[419852680,1775419846500,-500.0,0.00015178,2]
[419852681,1775419846510,-500.0,0.00015178,2]
[419852682,1775419846519,-500.0,0.00015178,2]
[419852683,1775419846529,-500.0,0.00015178,2]
[419852684,1775419846539,-500.0,0.00015178,2]
[419852685,1775419846549,-500.0,0.00015178,2]
[419852686,1775419846558,-500.0,0.00015178,2]
[419852687,1775419846567,-500.0,0.00015178,2]
[419852688,1775419846576,-615.77009816,0.00015178,2]
[419852689,1775419846585,-2201.0,0.00015178,2]
[419852691,1775419846595,-2201.0,0.00015178,2]
[419852692,1775419846606,-2201.0,0.00015178,2]
[419852693,1775419846616,-2201.0,0.00015178,2]
[419852694,1775419846625,-2201.0,0.00015178,2]
[419852695,1775419846635,-2201.0,0.00015178,2]
[419852696,1775419846644,-500.0,0.00015178,2]
[419852697,1775419846655,-2201.0,0.00015178,2]
[419852698,1775419846664,-500.0,0.00015178,2]
[419852699,1775419846674,-500.0,0.00015178,2]
[419852700,1775419846684,-2201.0,0.00015178,2]
[419852701,1775419846694,-500.0,0.00015178,2]
[419852702,1775419846705,-2201.0,0.00015178,2]
[419852703,1775419846715,-500.0,0.00015178,2]
[419852704,1775419846724,-2201.0,0.00015178,2]
[419852705,1775419846733,-500.0,0.00015178,2]
[419852706,1775419846743,-2201.0,0.00015178,2]
[419852707,1775419846752,-500.0,0.00015178,2]
[419852708,1775419846763,-2201.0,0.00015178,2]
[419852709,1775419846772,-500.0,0.00015178,2]
[419852710,1775419846782,-2201.0,0.00015178,2]
[419852711,1775419846791,-500.0,0.00015178,2]
[419852712,1775419846801,-2201.0,0.00015178,2]
[419852713,1775419846813,-500.0,0.00015178,2]
[419852714,1775419846822,-2201.0,0.00015178,2]
[419852715,1775419846832,-2201.0,0.00015178,2]
[419852716,1775419846842,-500.0,0.00015178,2]
[419852717,1775419846852,-2201.0,0.00015178,2]
[419852718,1775419846861,-500.0,0.00015178,2]
[419852719,1775419846870,-500.0,0.00015178,2]
[419852720,1775419846880,-2201.0,0.00015178,2]
[419852721,1775419846889,-500.0,0.00015178,2]
[419852722,1775419846898,-338.15756367,0.00015178,2]
[419852723,1775419846908,-2201.0,0.00015178,2]
[419852724,1775419846918,-2201.0,0.00015178,2]
[419852725,1775419846928,-2201.0,0.00015178,2]
[419852726,1775419846937,-2201.0,0.00015178,2]
[419852727,1775419846946,-2201.0,0.00015178,2]
[419852728,1775419846955,-2220.20664146,0.00015178,2]
[419852729,1775419846964,-150.0,0.00015185,2]
[419852730,1775419846974,-500.0,0.00015187,2]
[419852731,1775419846983,-846.58,0.00015187,2]
[419852732,1775419846992,-762.11,0.00015187,2]
[419852733,1775419847002,-500.0,0.00015187,2]
[419852734,1775419847011,-150.0,0.00015188,2]
[419852735,1775419847020,-150.0,0.00015189,2]
[419852736,1775419847029,-500.0,0.00015189,2]
[419852737,1775419847038,-500.0,0.00015189,2]
[419852738,1775419847048,-500.0,0.00015189,2]
[419852739,1775419847057,-500.0,0.00015189,2]
[419852740,1775419847066,-500.0,0.00015189,2]
[419852741,1775419847075,-500.0,0.00015189,2]
[419852742,1775419847084,-500.0,0.00015189,2]
[419852743,1775419847093,-500.0,0.00015189,2]
[419852744,1775419847102,-150.0,0.00015191,2]
[419852745,1775419847111,-5061.29326262,0.00015198,2]
[419852746,1775419847120,-150.0,0.000152,2]
[419852747,1775419847130,-150.0,0.000152,2]
[419852748,1775419847139,-150.0,0.000152,2]
[419852749,1775419847148,-150.0,0.000152,2]
[419852750,1775419847157,-150.0,0.000152,2]
[419852751,1775419847167,-150.0,0.000152,2]
[419852752,1775419847176,-150.0,0.000152,2]
[419852753,1775419847184,-150.0,0.000152,2]
[419852754,1775419847194,-322.47111,0.000152,2]
[419852755,1775419847203,-10000.0,0.00015205,2]
[419852756,1775419847212,-150.0,0.00015209,2]
[419852757,1775419847222,-150.0,0.00015211,2]
[419852758,1775419847231,-150.0,0.00015212,2]
[419852759,1775419847240,-150.0,0.00015215,2]
[419852760,1775419847250,-500.0,0.00015221,2]
[419852761,1775419847259,-646.16,0.00015221,2]
[419852762,1775419847268,-1115.58,0.00015221,2]
[419852763,1775419847278,-500.0,0.00015221,2]
[419852764,1775419847287,-500.0,0.00015221,2]
[419852765,1775419847297,-500.0,0.00015221,2]
[419852766,1775419847307,-500.0,0.00015221,2]
[419852767,1775419847316,-500.0,0.00015221,2]
[419852768,1775419847325,-500.0,0.00015221,2]
[419852769,1775419847334,-683.63,0.00015221,2]
[419852770,1775419847343,-815.51,0.00015221,2]
[419852771,1775419847352,-500.0,0.00015221,2]
[419852772,1775419847361,-500.0,0.00015221,2]
[419852773,1775419847371,-5888.0,0.00015226,2]
[419852774,1775419847380,-1600.0,0.00015227,2]
[419852775,1775419847390,-249.31,0.00015227,2]
[419852776,1775419847400,-150.0,0.00015228,2]
[419852777,1775419847410,-150.0,0.00015228,2]
[419852778,1775419847423,-150.0,0.00015231,2]
[419852779,1775419847434,-150.0,0.00015232,2]
[419852780,1775419847446,-150.0,0.00015234,2]
[419852781,1775419847455,-150.0,0.00015236,2]
[419852782,1775419847465,-150.0,0.00015245,2]
[419852783,1775419847475,-150.0,0.00015247,2]
[419852784,1775419847484,-150.0,0.00015256,2]
[419852785,1775419847494,-150.0,0.0001526,2]
[419852786,1775419847503,-150.0,0.00015262,2]
[419852787,1775419847512,-150.0,0.00015264,2]
[419852788,1775419847521,-150.0,0.00015266,2]
[419852789,1775419847531,-150.0,0.00015273,2]
[419852790,1775419847540,-150.0,0.00015275,2]
[419852791,1775419847549,-150.0,0.00015279,2]
[419852792,1775419847558,-150.0,0.00015283,2]
[419852793,1775419847568,-150.0,0.00015284,2]
[419852794,1775419847577,-150.0,0.00015285,2]
[419852795,1775419847586,-150.0,0.00015292,2]
[419852796,1775419847595,-150.0,0.00015296,2]
[419852797,1775419847605,-150.0,0.000153,2]
[419852798,1775419847614,-1517.64,0.000153,2]
[419852799,1775419847624,-150.0,0.00015301,2]
[419852800,1775419847633,-150.0,0.00015304,2]
[419852801,1775419847643,-150.0,0.00015306,2]
[419852802,1775419847654,-150.0,0.00015307,2]
[419852803,1775419847664,-1115.0,0.00015314,2]
[419852804,1775419847677,-150.0,0.00015322,2]
[419852805,1775419847688,-150.0,0.00015323,2]
[419852806,1775419847698,-150.0,0.00015324,2]
[419852807,1775419847709,-150.0,0.00015328,2]
[419852808,1775419847719,-150.0,0.00015331,2]
[419852809,1775419847730,-150.0,0.00015336,2]
[419852810,1775419847740,-150.0,0.00015338,2]
[419852811,1775419847750,-150.0,0.00015341,2]
[419852812,1775419847760,-150.0,0.00015342,2]
[419852813,1775419847770,-5888.0,0.00015343,2]
[419852814,1775419847781,-150.0,0.00015345,2]
[419852815,1775419847790,-150.0,0.00015346,2]
[419852816,1775419847800,-1000.0,0.00015348,2]
[419852817,1775419847809,-999.83756672,0.00015349,2]
[419852818,1775419847818,-150.0,0.00015354,2]
[419852819,1775419847828,-150.0,0.00015355,2]
[419852820,1775419847837,-150.0,0.0001536,2]
[419852821,1775419847847,-150.0,0.0001536,2]
[419852822,1775419847856,-150.0,0.00015366,2]
[419852823,1775419847866,-150.0,0.00015369,2]
[419852824,1775419847875,-150.0,0.00015379,2]
[419852825,1775419847884,-150.0,0.00015379,2]
[419852826,1775419847894,-150.0,0.00015385,2]
[419852827,1775419847903,-150.0,0.00015392,2]
[419852828,1775419847912,-150.0,0.00015392,2]
[419852829,1775419847922,-150.0,0.00015393,2]
[419852830,1775419847931,-442.89,0.00015395,2]
[419852831,1775419847941,-150.0,0.00015396,2]
[419852832,1775419847950,-150.0,0.00015398,2]
[419852833,1775419847960,-150.0,0.000154,2]
[419852834,1775419847969,-512.60947705,0.000154,2]
[419852835,1775419847979,-150.0,0.00015403,2]
[419852836,1775419847988,-150.0,0.00015414,2]
[419852837,1775419847997,-150.0,0.00015415,2]
[419852838,1775419848007,-150.0,0.00015416,2]
[419852839,1775419848016,-150.0,0.00015418,2]
[419852840,1775419848025,-150.0,0.00015424,2]
[419852841,1775419848034,-150.0,0.00015426,2]
[419852842,1775419848043,-150.0,0.00015427,2]
[419852843,1775419848053,-150.0,0.00015435,2]
[419852844,1775419848062,-150.0,0.00015437,2]
[419852845,1775419848072,-5888.0,0.00015437,2]
[419852846,1775419848082,-150.0,0.00015446,2]
[419852847,1775419848091,-150.0,0.00015448,2]
[419852848,1775419848100,-150.0,0.00015451,2]
[419852849,1775419848110,-621.04576426,0.00015452,2]
[419852850,1775419848119,-150.0,0.00015454,2]
[419852851,1775419848128,-150.0,0.00015456,2]
[419852852,1775419848138,-150.0,0.00015457,2]
[419852853,1775419848148,-150.0,0.00015459,2]
[419852854,1775419848158,-150.0,0.00015467,2]
[419852855,1775419848168,-150.0,0.00015467,2]
[419852856,1775419848178,-9697.99,0.00015471,2]
[419852857,1775419848188,-1638.67,0.00015471,2]
[419852858,1775419848200,-7440.37,0.00015471,2]
[419852859,1775419848211,-28985.77,0.00015471,2]
[419852860,1775419848223,-3062.66,0.00015471,2]
[419852861,1775419848233,-150.0,0.00015473,2]
[419852862,1775419848244,-150.0,0.00015475,2]
[419852863,1775419848255,-150.0,0.00015477,2]
[419852864,1775419848265,-150.0,0.00015482,2]
[419852865,1775419848275,-150.0,0.00015487,2]
[419852866,1775419848284,-150.0,0.00015488,2]
[419852867,1775419848293,-150.0,0.00015491,2]
[419852868,1775419848303,-150.0,0.00015492,2]
[419852869,1775419848314,-500.0,0.00015493,2]
[419852870,1775419848323,-1063.21,0.00015493,2]
[419852871,1775419848333,-620.62,0.00015493,2]
[419852872,1775419848343,-826.88,0.00015493,2]
[419852873,1775419848352,-1000.0,0.00015498,2]
[419852874,1775419848364,-1000.0,0.00015498,2]
[419852875,1775419848374,-1000.0,0.00015498,2]
[419852876,1775419848385,-1000.0,0.00015498,2]
[419852877,1775419848395,-1000.0,0.00015498,2]
[419852878,1775419848407,-500.76237275,0.00015498,2]
[419852879,1775419848417,-1000.0,0.00015498,2]
[419852880,1775419848427,-1000.0,0.00015498,2]
[419852881,1775419848437,-150.0,0.00015499,2]
[419852882,1775419848446,-150.0,0.000155,2]
[419852883,1775419848455,-1661.34286454,0.000155,3]
[419852884,1775419848464,-5643.7200837,0.000155,3]
[419852885,1775419848617,-1231.52674065,0.000155,2]
[419852886,1775419848626,-1000.0,0.00015501,2]
[419852887,1775419848635,-1000.0,0.00015501,2]
[419852888,1775419848644,-150.0,0.00015503,2]
[419852889,1775419848653,-1055.485,0.00015504,2]
[419852890,1775419848662,-1217.0,0.00015504,2]
[419852891,1775419848671,-150.0,0.00015504,2]
[419852892,1775419848680,-150.0,0.00015508,2]
[419852893,1775419848689,-150.0,0.00015511,2]
[419852894,1775419848698,-150.0,0.00015517,2]
[419852895,1775419848707,-150.0,0.0001552,2]
[419852896,1775419848716,-157.39168565,0.00015521,2]
[419852897,1775419848727,-150.0,0.00015522,2]
[419852898,1775419848736,-500.0,0.00015526,2]
[419852899,1775419848747,-150.0,0.00015527,2]
[419852900,1775419848758,-150.0,0.00015529,2]
[419852901,1775419848767,-785.67,0.0001553,2]
[419852902,1775419848776,-26594.05472143,0.00015533,2]
[419852903,1775419848785,-150.0,0.00015538,2]
[419852904,1775419848794,-150.0,0.00015546,2]
[419852905,1775419848803,-150.0,0.00015547,2]
[419852906,1775419848812,-150.0,0.00015548,2]
[419852907,1775419848820,-150.0,0.00015549,2]
[419852908,1775419848830,-150.0,0.00015552,2]
[419852909,1775419848839,-364.40328381,0.00015556,2]
[419852910,1775419848848,-150.0,0.00015559,2]
[419852911,1775419848857,-150.0,0.00015564,2]
[419852912,1775419848867,-168.186131,0.00015564,2]
[419852913,1775419848876,-168.186131,0.00015564,2]
[419852914,1775419848885,-150.0,0.00015567,2]
[419852915,1775419848894,-150.0,0.00015569,2]
[419852916,1775419848903,-150.0,0.0001557,2]
[419852917,1775419848912,-150.0,0.00015572,2]
[419852918,1775419848921,-150.0,0.00015577,2]
[419852919,1775419848930,-150.0,0.00015584,2]
[419852920,1775419848939,-150.0,0.00015586,2]
[419852921,1775419848948,-1000.0,0.0001559,2]
[419852922,1775419848957,-790.32775663,0.0001559,2]
[419852923,1775419848966,-1000.0,0.0001559,2]
[419852924,1775419848975,-1000.0,0.0001559,2]
[419852925,1775419848983,-1000.0,0.0001559,2]
[419852926,1775419848992,-1000.0,0.0001559,2]
[419852927,1775419849001,-1000.0,0.0001559,2]
[419852928,1775419849010,-1000.0,0.0001559,2]
[419852929,1775419849019,-150.0,0.00015594,2]
[419852930,1775419849028,-150.0,0.00015594,2]
[419852931,1775419849037,-415.0,0.00015597,2]
[419852932,1775419849047,-6020.0,0.00015597,2]
[419852933,1775419849055,-150.0,0.000156,2]
[419852934,1775419849064,-150.0,0.000156,2]
[419852935,1775419849074,-150.0,0.000156,2]
[419852936,1775419849083,-2000.0,0.000156,2]
[419852937,1775419849093,-8422.99193755,0.00015603,2]
[419852938,1775419849103,-150.0,0.00015605,2]
[419852939,1775419849112,-150.0,0.00015608,2]
[419852940,1775419849122,-150.0,0.00015614,2]
[419852941,1775419849133,-150.0,0.00015616,2]
[419852942,1775419849143,-150.0,0.00015616,2]
[419852943,1775419849154,-500.0,0.00015616,2]
[419852944,1775419849164,-150.0,0.00015616,2]
[419852945,1775419849174,-150.0,0.00015616,2]
[419852946,1775419849184,-250.0,0.00015616,2]
[419852947,1775419849194,-155.09,0.00015616,2]
[419852948,1775419849204,-150.0,0.00015617,2]
[419852949,1775419849213,-150.0,0.00015618,2]
[419852950,1775419849222,-871.95012592,0.0001562,2]
[419852951,1775419849232,-150.0,0.00015624,2]
[419852952,1775419849241,-500.0,0.00015629,2]
[419852953,1775419849251,-846.58,0.00015629,2]
[419852954,1775419849260,-762.11,0.00015629,2]
[419852955,1775419849270,-500.0,0.00015629,2]
[419852956,1775419849280,-150.0,0.00015631,2]
[419852957,1775419849290,-733.77686062,0.00015634,2]
[419852958,1775419849301,-150.0,0.00015636,2]
[419852959,1775419849313,-150.0,0.00015638,2]
[419852960,1775419849323,-150.0,0.00015639,2]
[419852961,1775419849332,-150.0,0.00015642,2]
[419852962,1775419849342,-150.0,0.00015642,2]
[419852963,1775419849351,-150.0,0.00015648,2]
[419852964,1775419849362,-217.0,0.00015653,2]
[419852965,1775419849371,-273.0,0.00015653,2]
[419852966,1775419849380,-200.0,0.00015653,2]
[419852967,1775419849390,-224.902,0.00015653,2]
[419852968,1775419849401,-250.0,0.00015653,2]
[419852969,1775419849410,-150.0,0.00015653,2]
[419852970,1775419849421,-208.102,0.00015653,2]
[419852971,1775419849431,-250.0,0.00015653,2]
[419852972,1775419849441,-250.0,0.00015653,2]
[419852973,1775419849450,-163.183,0.00015653,2]
[419852974,1775419849459,-155.122,0.00015653,2]
[419852975,1775419849469,-193.552,0.00015653,2]
[419852976,1775419849478,-166.114,0.00015653,2]
[419852977,1775419849488,-250.0,0.00015653,2]
[419852978,1775419849497,-214.923,0.00015653,2]
[419852980,1775419849506,-3556.258,0.00015653,2]
[419852981,1775419849516,-634.472,0.00015653,2]
[419852982,1775419849525,-1348.652,0.00015653,2]
[419852983,1775419849534,-1267.843,0.00015653,2]
[419852984,1775419849543,-276.717,0.00015653,2]
[419852985,1775419849553,-442.89,0.00015658,2]
[419852986,1775419849562,-150.0,0.00015661,2]
[419852987,1775419849571,-150.0,0.00015662,2]
[419852988,1775419849580,-150.0,0.00015662,2]
[419852989,1775419849590,-5888.0,0.00015663,2]
[419852990,1775419849599,-150.0,0.00015666,2]
[419852991,1775419849611,-150.0,0.00015668,2]
[419852992,1775419849620,-150.0,0.00015669,2]
[419852993,1775419849630,-2218.13051349,0.0001568,2]
[419852994,1775419849639,-150.0,0.0001568,2]
[419852995,1775419849648,-150.0,0.0001568,2]
[419852996,1775419849657,-1126.82198615,0.0001568,2]
[419852997,1775419849667,-1005.44021127,0.0001568,2]
[419852998,1775419849676,-1079.01011371,0.0001568,2]
[419852999,1775419849685,-1054.06960556,0.0001568,2]
[419853000,1775419849694,-1023.56981765,0.0001568,2]
[419853001,1775419849704,-1117.63711941,0.0001568,2]
[419853002,1775419849713,-1058.52757477,0.0001568,2]
[419853003,1775419849722,-1135.39418181,0.0001568,2]
[419853004,1775419849731,-1020.69467605,0.0001568,2]
[419853005,1775419849741,-1102.33470213,0.0001568,2]
[419853006,1775419849750,-1062.26798019,0.0001568,2]
[419853008,1775419849759,-1012.37578192,0.0001568,2]
[419853009,1775419849768,-1034.26187323,0.0001568,2]
[419853010,1775419849777,-1070.58531718,0.0001568,2]
[419853011,1775419849787,-1628.9388718,0.0001568,2]
[419853012,1775419849796,-150.0,0.00015685,2]
[419853013,1775419849806,-150.0,0.0001569,2]
[419853014,1775419849815,-150.0,0.00015692,2]
[419853015,1775419849824,-150.0,0.00015698,2]
[419853016,1775419849833,-150.0,0.00015699,2]
[419853017,1775419849842,-500.0,0.000157,2]
[419853018,1775419849851,-646.16,0.000157,2]
[419853019,1775419849860,-1115.58,0.000157,2]
[419853020,1775419849870,-500.0,0.000157,2]
[419853021,1775419849879,-150.0,0.000157,2]